Workbook

Sheet Ставрокулатский
A1: Код раздела 1 | B1: Код загрязняющего вещества | C1: Вещ-во | D1: ПДВ | E1: Факт | F1: Код 1 | G1: Код 2 | H1: Код 5 | K1: № строки | L1: Код загрязняющего вещества | M1: Загрязняющее вещество | N1: Выброс | O1: Выброс неокругленный
B2: =Таблица134567891011121314[[#This Row],[Код 2]] -> х | C2: Азот (II) оксид (азота оксид) | D2: 0.0046806 | E2: 0.0046806 | F2: =VLOOKUP(C2,'[1]коды веществ'!A:F,3,FALSE) -> 120 | G2: =VLOOKUP(C2,'[1]коды веществ'!A:F,5,FALSE) -> х | H2: =VLOOKUP(C2,'[1]коды веществ'!A:F,6,FALSE) -> 0 | K2: 1 | L2: 1325 | M2: Формальдегид | O2: 3e-05
B3: =Таблица134567891011121314[[#This Row],[Код 2]] -> х | C3: Азот (IV )оксид (азота диоксид) | D3: 0.0288013 | E3: 0.0288013 | F3: =VLOOKUP(C3,'[1]коды веществ'!A:F,3,FALSE) -> 122 | G3: =VLOOKUP(C3,'[1]коды веществ'!A:F,5,FALSE) -> х | H3: =VLOOKUP(C3,'[1]коды веществ'!A:F,6,FALSE) -> 0 | K3: =IF(LEN(L3),K2+1,"") -> 2 | L3: 2704 | M3: Бензин (нефтяной, малосернистый) в пересчете на углерод | N3: =ROUND(O3,3) -> 0.001 | O3: 0.0013869
B4: =Таблица134567891011121314[[#This Row],[Код 2]] -> 0703 | C4: Бензапирен, Бенз/а/пирен | D4: 7.54e-09 | E4: 7.54e-09 | F4: =VLOOKUP(C4,'[1]коды веществ'!A:F,3,FALSE) -> 401 | G4: =VLOOKUP(C4,'[1]коды веществ'!A:F,5,FALSE) -> 0703 | H4: =VLOOKUP(C4,'[1]коды веществ'!A:F,6,FALSE) -> 7 | K4: 3 | L4: 0328 | M4: Углерод черный (сажа) | O4: 0.00015
B5: =Таблица134567891011121314[[#This Row],[Код 2]] -> 2704 | C5: Бензин (нефтяной, малосернистый) в пересчете на углерод | D5: 0.0013869 | E5: 0.0013869 | F5: =VLOOKUP(C5,'[1]коды веществ'!A:F,3,FALSE) -> 6 | G5: =VLOOKUP(C5,'[1]коды веществ'!A:F,5,FALSE) -> 2704 | H5: =VLOOKUP(C5,'[1]коды веществ'!A:F,6,FALSE) -> 7 | K5: 4 | L5: 0703 | M5: Бензапирен, Бенз/а/пирен | N5: =ROUND(O5,3) -> 0 | O5: 7.54e-09
B6: =Таблица134567891011121314[[#This Row],[Код 2]] -> х | C6: Диоксид серы (Ангидрид сернистый) | D6: 0.0002597 | E6: 0.0002597 | F6: =VLOOKUP(C6,'[1]коды веществ'!A:F,3,FALSE) -> 330 | G6: =VLOOKUP(C6,'[1]коды веществ'!A:F,5,FALSE) -> х | H6: =VLOOKUP(C6,'[1]коды веществ'!A:F,6,FALSE) -> 0
B7: =Таблица134567891011121314[[#This Row],[Код 2]] -> 8888 | C7: Керосин | D7: 0.00075 | E7: 0.00075 | F7: =VLOOKUP(C7,'[1]коды веществ'!A:F,3,FALSE) -> 6 | G7: =VLOOKUP(C7,'[1]коды веществ'!A:F,5,FALSE) -> 8888 | H7: =VLOOKUP(C7,'[1]коды веществ'!A:F,6,FALSE) -> 7
B8: =Таблица134567891011121314[[#This Row],[Код 2]] -> х | C8: Оксид углерода | D8: 0.1175278 | E8: 0.1175278 | F8: =VLOOKUP(C8,'[1]коды веществ'!A:F,3,FALSE) -> 337 | G8: =VLOOKUP(C8,'[1]коды веществ'!A:F,5,FALSE) -> х | H8: =VLOOKUP(C8,'[1]коды веществ'!A:F,6,FALSE) -> 0
B9: =Таблица134567891011121314[[#This Row],[Код 2]] -> 0328 | C9: Углерод черный (сажа) | D9: 0.00015 | E9: 0.00015 | F9: =VLOOKUP(C9,'[1]коды веществ'!A:F,3,FALSE) -> 2 | G9: =VLOOKUP(C9,'[1]коды веществ'!A:F,5,FALSE) -> 0328 | H9: =VLOOKUP(C9,'[1]коды веществ'!A:F,6,FALSE) -> 0
B10: =Таблица134567891011121314[[#This Row],[Код 2]] -> 1325 | C10: Формальдегид | D10: 3e-05 | E10: 3e-05 | F10: =VLOOKUP(C10,'[1]коды веществ'!A:F,3,FALSE) -> 6 | G10: =VLOOKUP(C10,'[1]коды веществ'!A:F,5,FALSE) -> 1325 | H10: =VLOOKUP(C10,'[1]коды веществ'!A:F,6,FALSE) -> 7
B11: =Таблица134567891011121314[[#This Row],[Код 2]] ->  | F11: =VLOOKUP(C11,'[1]коды веществ'!A:F,3,FALSE) ->  | G11: =VLOOKUP(C11,'[1]коды веществ'!A:F,5,FALSE) ->  | H11: =VLOOKUP(C11,'[1]коды веществ'!A:F,6,FALSE) -> 
B12: =Таблица134567891011121314[[#This Row],[Код 2]] ->  | F12: =VLOOKUP(C12,'[1]коды веществ'!A:F,3,FALSE) ->  | G12: =VLOOKUP(C12,'[1]коды веществ'!A:F,5,FALSE) ->  | H12: =VLOOKUP(C12,'[1]коды веществ'!A:F,6,FALSE) -> 
B13: =Таблица134567891011121314[[#This Row],[Код 2]] ->  | F13: =VLOOKUP(C13,'[1]коды веществ'!A:F,3,FALSE) ->  | G13: =VLOOKUP(C13,'[1]коды веществ'!A:F,5,FALSE) ->  | H13: =VLOOKUP(C13,'[1]коды веществ'!A:F,6,FALSE) -> 
B14: =Таблица134567891011121314[[#This Row],[Код 2]] ->  | F14: =VLOOKUP(C14,'[1]коды веществ'!A:F,3,FALSE) ->  | G14: =VLOOKUP(C14,'[1]коды веществ'!A:F,5,FALSE) ->  | H14: =VLOOKUP(C14,'[1]коды веществ'!A:F,6,FALSE) -> 
B15: =Таблица134567891011121314[[#This Row],[Код 2]] ->  | F15: =VLOOKUP(C15,'[1]коды веществ'!A:F,3,FALSE) ->  | G15: =VLOOKUP(C15,'[1]коды веществ'!A:F,5,FALSE) ->  | H15: =VLOOKUP(C15,'[1]коды веществ'!A:F,6,FALSE) -> 
B16: =Таблица134567891011121314[[#This Row],[Код 2]] ->  | F16: =VLOOKUP(C16,'[1]коды веществ'!A:F,3,FALSE) ->  | G16: =VLOOKUP(C16,'[1]коды веществ'!A:F,5,FALSE) ->  | H16: =VLOOKUP(C16,'[1]коды веществ'!A:F,6,FALSE) -> 
B17: =Таблица134567891011121314[[#This Row],[Код 2]] ->  | F17: =VLOOKUP(C17,'[1]коды веществ'!A:F,3,FALSE) ->  | G17: =VLOOKUP(C17,'[1]коды веществ'!A:F,5,FALSE) ->  | H17: =VLOOKUP(C17,'[1]коды веществ'!A:F,6,FALSE) -> 
B18: =Таблица134567891011121314[[#This Row],[Код 2]] ->  | F18: =VLOOKUP(C18,'[1]коды веществ'!A:F,3,FALSE) ->  | G18: =VLOOKUP(C18,'[1]коды веществ'!A:F,5,FALSE) ->  | H18: =VLOOKUP(C18,'[1]коды веществ'!A:F,6,FALSE) -> 
B19: =Таблица134567891011121314[[#This Row],[Код 2]] ->  | F19: =VLOOKUP(C19,'[1]коды веществ'!A:F,3,FALSE) ->  | G19: =VLOOKUP(C19,'[1]коды веществ'!A:F,5,FALSE) ->  | H19: =VLOOKUP(C19,'[1]коды веществ'!A:F,6,FALSE) -> 
B20: =Таблица134567891011121314[[#This Row],[Код 2]] ->  | F20: =VLOOKUP(C20,'[1]коды веществ'!A:F,3,FALSE) ->  | G20: =VLOOKUP(C20,'[1]коды веществ'!A:F,5,FALSE) ->  | H20: =VLOOKUP(C20,'[1]коды веществ'!A:F,6,FALSE) -> 
B21: =Таблица134567891011121314[[#This Row],[Код 2]] ->  | F21: =VLOOKUP(C21,'[1]коды веществ'!A:F,3,FALSE) ->  | G21: =VLOOKUP(C21,'[1]коды веществ'!A:F,5,FALSE) ->  | H21: =VLOOKUP(C21,'[1]коды веществ'!A:F,6,FALSE) -> 
B22: =Таблица134567891011121314[[#This Row],[Код 2]] ->  | F22: =VLOOKUP(C22,'[1]коды веществ'!A:F,3,FALSE) ->  | G22: =VLOOKUP(C22,'[1]коды веществ'!A:F,5,FALSE) ->  | H22: =VLOOKUP(C22,'[1]коды веществ'!A:F,6,FALSE) -> 
B23: =Таблица134567891011121314[[#This Row],[Код 2]] ->  | F23: =VLOOKUP(C23,'[1]коды веществ'!A:F,3,FALSE) ->  | G23: =VLOOKUP(C23,'[1]коды веществ'!A:F,5,FALSE) ->  | H23: =VLOOKUP(C23,'[1]коды веществ'!A:F,6,FALSE) -> 
B24: =Таблица134567891011121314[[#This Row],[Код 2]] ->  | F24: =VLOOKUP(C24,'[1]коды веществ'!A:F,3,FALSE) ->  | G24: =VLOOKUP(C24,'[1]коды веществ'!A:F,5,FALSE) ->  | H24: =VLOOKUP(C24,'[1]коды веществ'!A:F,6,FALSE) -> 
B25: =Таблица134567891011121314[[#This Row],[Код 2]] ->  | F25: =VLOOKUP(C25,'[1]коды веществ'!A:F,3,FALSE) ->  | G25: =VLOOKUP(C25,'[1]коды веществ'!A:F,5,FALSE) ->  | H25: =VLOOKUP(C25,'[1]коды веществ'!A:F,6,FALSE) -> 
B26: =Таблица134567891011121314[[#This Row],[Код 2]] ->  | F26: =VLOOKUP(C26,'[1]коды веществ'!A:F,3,FALSE) ->  | G26: =VLOOKUP(C26,'[1]коды веществ'!A:F,5,FALSE) ->  | H26: =VLOOKUP(C26,'[1]коды веществ'!A:F,6,FALSE) -> 
B27: =Таблица134567891011121314[[#This Row],[Код 2]] ->  | F27: =VLOOKUP(C27,'[1]коды веществ'!A:F,3,FALSE) ->  | G27: =VLOOKUP(C27,'[1]коды веществ'!A:F,5,FALSE) ->  | H27: =VLOOKUP(C27,'[1]коды веществ'!A:F,6,FALSE) -> 
B28: =Таблица134567891011121314[[#This Row],[Код 2]] ->  | F28: =VLOOKUP(C28,'[1]коды веществ'!A:F,3,FALSE) ->  | G28: =VLOOKUP(C28,'[1]коды веществ'!A:F,5,FALSE) ->  | H28: =VLOOKUP(C28,'[1]коды веществ'!A:F,6,FALSE) -> 
B29: =Таблица134567891011121314[[#This Row],[Код 2]] ->  | F29: =VLOOKUP(C29,'[1]коды веществ'!A:F,3,FALSE) ->  | G29: =VLOOKUP(C29,'[1]коды веществ'!A:F,5,FALSE) ->  | H29: =VLOOKUP(C29,'[1]коды веществ'!A:F,6,FALSE) -> 
B30: =Таблица134567891011121314[[#This Row],[Код 2]] ->  | F30: =VLOOKUP(C30,'[1]коды веществ'!A:F,3,FALSE) ->  | G30: =VLOOKUP(C30,'[1]коды веществ'!A:F,5,FALSE) ->  | H30: =VLOOKUP(C30,'[1]коды веществ'!A:F,6,FALSE) -> 
B31: =Таблица134567891011121314[[#This Row],[Код 2]] ->  | F31: =VLOOKUP(C31,'[1]коды веществ'!A:F,3,FALSE) ->  | G31: =VLOOKUP(C31,'[1]коды веществ'!A:F,5,FALSE) ->  | H31: =VLOOKUP(C31,'[1]коды веществ'!A:F,6,FALSE) -> 
B32: =Таблица134567891011121314[[#This Row],[Код 2]] ->  | F32: =VLOOKUP(C32,'[1]коды веществ'!A:F,3,FALSE) ->  | G32: =VLOOKUP(C32,'[1]коды веществ'!A:F,5,FALSE) ->  | H32: =VLOOKUP(C32,'[1]коды веществ'!A:F,6,FALSE) -> 
B33: =Таблица134567891011121314[[#This Row],[Код 2]] ->  | F33: =VLOOKUP(C33,'[1]коды веществ'!A:F,3,FALSE) ->  | G33: =VLOOKUP(C33,'[1]коды веществ'!A:F,5,FALSE) ->  | H33: =VLOOKUP(C33,'[1]коды веществ'!A:F,6,FALSE) -> 
B34: =Таблица134567891011121314[[#This Row],[Код 2]] ->  | F34: =VLOOKUP(C34,'[1]коды веществ'!A:F,3,FALSE) ->  | G34: =VLOOKUP(C34,'[1]коды веществ'!A:F,5,FALSE) ->  | H34: =VLOOKUP(C34,'[1]коды веществ'!A:F,6,FALSE) -> 
B35: =Таблица134567891011121314[[#This Row],[Код 2]] ->  | F35: =VLOOKUP(C35,'[1]коды веществ'!A:F,3,FALSE) ->  | G35: =VLOOKUP(C35,'[1]коды веществ'!A:F,5,FALSE) ->  | H35: =VLOOKUP(C35,'[1]коды веществ'!A:F,6,FALSE) -> 
B36: =Таблица134567891011121314[[#This Row],[Код 2]] ->  | F36: =VLOOKUP(C36,'[1]коды веществ'!A:F,3,FALSE) ->  | G36: =VLOOKUP(C36,'[1]коды веществ'!A:F,5,FALSE) ->  | H36: =VLOOKUP(C36,'[1]коды веществ'!A:F,6,FALSE) -> 
B37: =Таблица134567891011121314[[#This Row],[Код 2]] ->  | F37: =VLOOKUP(C37,'[1]коды веществ'!A:F,3,FALSE) ->  | G37: =VLOOKUP(C37,'[1]коды веществ'!A:F,5,FALSE) ->  | H37: =VLOOKUP(C37,'[1]коды веществ'!A:F,6,FALSE) -> 
B38: =Таблица134567891011121314[[#This Row],[Код 2]] ->  | F38: =VLOOKUP(C38,'[1]коды веществ'!A:F,3,FALSE) ->  | G38: =VLOOKUP(C38,'[1]коды веществ'!A:F,5,FALSE) ->  | H38: =VLOOKUP(C38,'[1]коды веществ'!A:F,6,FALSE) -> 
B39: =Таблица134567891011121314[[#This Row],[Код 2]] ->  | F39: =VLOOKUP(C39,'[1]коды веществ'!A:F,3,FALSE) ->  | G39: =VLOOKUP(C39,'[1]коды веществ'!A:F,5,FALSE) ->  | H39: =VLOOKUP(C39,'[1]коды веществ'!A:F,6,FALSE) -> 
B40: =Таблица134567891011121314[[#This Row],[Код 2]] ->  | F40: =VLOOKUP(C40,'[1]коды веществ'!A:F,3,FALSE) ->  | G40: =VLOOKUP(C40,'[1]коды веществ'!A:F,5,FALSE) ->  | H40: =VLOOKUP(C40,'[1]коды веществ'!A:F,6,FALSE) -> 
B41: =Таблица134567891011121314[[#This Row],[Код 2]] ->  | F41: =VLOOKUP(C41,'[1]коды веществ'!A:F,3,FALSE) ->  | G41: =VLOOKUP(C41,'[1]коды веществ'!A:F,5,FALSE) ->  | H41: =VLOOKUP(C41,'[1]коды веществ'!A:F,6,FALSE) -> 
B42: =Таблица134567891011121314[[#This Row],[Код 2]] ->  | F42: =VLOOKUP(C42,'[1]коды веществ'!A:F,3,FALSE) ->  | G42: =VLOOKUP(C42,'[1]коды веществ'!A:F,5,FALSE) ->  | H42: =VLOOKUP(C42,'[1]коды веществ'!A:F,6,FALSE) -> 
B43: =Таблица134567891011121314[[#This Row],[Код 2]] ->  | F43: =VLOOKUP(C43,'[1]коды веществ'!A:F,3,FALSE) ->  | G43: =VLOOKUP(C43,'[1]коды веществ'!A:F,5,FALSE) ->  | H43: =VLOOKUP(C43,'[1]коды веществ'!A:F,6,FALSE) -> 
B44: =Таблица134567891011121314[[#This Row],[Код 2]] ->  | F44: =VLOOKUP(C44,'[1]коды веществ'!A:F,3,FALSE) ->  | G44: =VLOOKUP(C44,'[1]коды веществ'!A:F,5,FALSE) ->  | H44: =VLOOKUP(C44,'[1]коды веществ'!A:F,6,FALSE) -> 
B45: =Таблица134567891011121314[[#This Row],[Код 2]] ->  | F45: =VLOOKUP(C45,'[1]коды веществ'!A:F,3,FALSE) ->  | G45: =VLOOKUP(C45,'[1]коды веществ'!A:F,5,FALSE) ->  | H45: =VLOOKUP(C45,'[1]коды веществ'!A:F,6,FALSE) -> 
B46: =Таблица134567891011121314[[#This Row],[Код 2]] ->  | F46: =VLOOKUP(C46,'[1]коды веществ'!A:F,3,FALSE) ->  | G46: =VLOOKUP(C46,'[1]коды веществ'!A:F,5,FALSE) ->  | H46: =VLOOKUP(C46,'[1]коды веществ'!A:F,6,FALSE) -> 
C47: ИТОГО: | D47: =SUM(D2:D46) -> 0.1535863075 | E47: =SUM(E2:E46) -> 0.1535863075 | M47: ИТОГО: | N47: =ROUND(O47,3) -> 0.154 | O47: 0.1535863075
